fUSD/lending_fUSD_20240125
["ID","MTS","AMOUNT","RATE_DAILY","PERIOD"]
[312740237,1706191841142,-1138.0,0.00036315,2]
[312740239,1706191841152,-316.95,0.00036315,2]
[312740242,1706191841161,-2274.0,0.00036315,2]
[312740244,1706191841171,-158.68,0.00036438,2]
[312740245,1706191841180,-150.0,0.00036482,2]
[312740246,1706191841189,-5000.0,0.0003689,7]
[312740247,1706191841199,-1000.0,0.00036941,2]
[312740248,1706191841208,-150.0,0.00037059,2]
[312740249,1706191841217,-789.50273892,0.0003711,2]
[312740250,1706191841226,-11128.09792183,0.00037218,10]
[312740251,1706191841237,-72060.3817523,0.000374,2]
[312740252,1706191841246,-164.11,0.00037443,15]
[312740253,1706191841256,-1000.0,0.000375,2]
[312740254,1706191841266,-150.0,0.00037635,2]
[312740255,1706191841275,-158.8,0.000377,3]
[312740256,1706191841284,-153.13,0.000377,3]
[312740257,1706191841294,-152.06,0.000377,3]
[312740258,1706191841303,-152.06,0.000377,3]
[312740259,1706191841313,-152.06,0.000377,3]
[312740260,1706191841322,-152.06,0.000377,3]
[312740261,1706191841331,-152.06,0.000377,3]
[312740263,1706191841341,-152.06,0.000377,3]
[312740265,1706191841350,-152.06,0.000377,3]
[312740266,1706191841360,-152.06,0.000377,3]
[312740267,1706191841371,-152.06,0.000377,3]
[312740268,1706191841380,-152.06,0.000377,3]
[312740269,1706191841394,-152.06,0.000377,3]
[312740270,1706191841404,-152.06,0.000377,3]
[312740271,1706191841413,-152.06,0.000377,3]
[312740272,1706191841423,-152.22697284,0.00037775,2]
[312740273,1706191841432,-2852.78,0.00037808,2]
[312740274,1706191841441,-1645.31,0.00037808,2]
[312740275,1706191841451,-159.9062418,0.00037879,2]
[312740276,1706191841460,-150.0,0.00037879,2]
[312740277,1706191841470,-390331.43094346,0.0003788,2]
[312740278,1706191841479,-547.14423294,0.00037897,2]
[312740279,1706191841489,-159.9062418,0.00037899,2]
[312740280,1706191841499,-150.0,0.00037899,2]
[312740281,1706191841509,-72782.2090359,0.000379,2]
[312740282,1706191841518,-412.98039357,0.000379,10]
[312740283,1706191841527,-684955.639913,0.000379,3]
[312740284,1706191841536,-150.0,0.00038212,2]
[312740285,1706191841546,-534.78120717,0.00038219,4]
[312740286,1706191841556,-150.0,0.00038356,2]
[312740287,1706191841565,-47049.73559763,0.000385,2]
[312740288,1706191841575,-547.96792735,0.00038567,7]
[312740289,1706191841584,-789.50273892,0.00038688,2]
[312740290,1706191841593,-151.22713703,0.00038703,17]
[312740291,1706191841603,-151.22713703,0.00038703,16]
[312740292,1706191841613,-151.22713703,0.00038703,14]
[312740293,1706191841622,-151.22713703,0.00038703,16]
[312740294,1706191841632,-151.22713703,0.00038703,17]
[312740295,1706191841641,-151.22713703,0.00038703,14]
[312740296,1706191841651,-151.22713703,0.00038703,18]
[312740297,1706191841661,-151.22713703,0.00038703,15]
[312740298,1706191841670,-151.22713703,0.00038703,14]
[312740299,1706191841680,-151.22713703,0.00038703,18]
[312740300,1706191841689,-151.22713703,0.00038703,16]
[312740301,1706191841698,-151.22713703,0.00038703,14]
[312740302,1706191841707,-151.22713703,0.00038703,18]
[312740303,1706191841716,-151.22713703,0.00038703,15]
[312740304,1706191841725,-151.22713703,0.00038703,14]
[312740305,1706191841734,-151.22713703,0.00038703,15]
[312740306,1706191841742,-151.22713703,0.00038703,15]
[312740307,1706191841751,-151.22713703,0.00038703,17]
[312740308,1706191841760,-151.22713703,0.00038703,16]
[312740309,1706191841770,-151.22713703,0.00038703,14]
[312740310,1706191841780,-151.22713703,0.00038703,15]
[312740312,1706191841790,-151.22713703,0.00038703,15]
[312740314,1706191841799,-151.22713703,0.00038703,15]
[312740316,1706191841809,-151.22713703,0.00038703,16]
[312740318,1706191841818,-151.22713703,0.00038703,14]
[312740320,1706191841827,-151.22713703,0.00038703,16]
[312740322,1706191841837,-151.22713703,0.00038703,17]
[312740324,1706191841846,-151.22713703,0.00038703,14]
[312740326,1706191841855,-151.22713703,0.00038703,14]
[312740327,1706191841864,-151.22713703,0.00038703,17]
[312740328,1706191841874,-151.22713703,0.00038703,16]
[312740329,1706191841883,-151.22713703,0.00038703,14]
[312740330,1706191841892,-151.22713703,0.00038703,17]
[312740331,1706191841902,-151.22713703,0.00038703,16]
[312740332,1706191841911,-151.22713703,0.00038703,17]
[312740333,1706191841921,-151.22713703,0.00038703,17]
[312740334,1706191841930,-151.22713703,0.00038703,18]
[312740335,1706191841939,-151.22713703,0.00038703,18]
[312740336,1706191841949,-151.22713703,0.00038703,14]
[312740337,1706191841960,-151.22713703,0.00038703,14]
[312740338,1706191841969,-151.22713703,0.00038703,16]
[312740339,1706191841979,-151.22713703,0.00038703,18]
[312740340,1706191841989,-150.0,0.00038789,2]
[312740341,1706191841998,-8900.43246578,0.0003887,10]
[312740342,1706191842009,-624.55940774,0.000389,9]
[312740343,1706191842019,-624.55940768,0.000389,9]
[312740344,1706191842028,-624.55940768,0.000389,9]
[312740345,1706191842038,-624.55940768,0.000389,9]
[312740346,1706191842048,-624.55940768,0.000389,9]
[312740347,1706191842058,-282.26694691,0.0003898,2]
[312740348,1706191842068,-197.01513932,0.00039,4]
[312740349,1706191842078,-532.5163169,0.00039,4]
[312740350,1706191842088,-1430.03686544,0.00039,2]
[312740351,1706191842098,-975.72594921,0.00039,4]
[312740352,1706191842108,-225.98978178,0.00039,5]
[312740353,1706191842118,-489.72,0.0003926,2]
[312740354,1706191842128,-770.863,0.00039315,2]
[312740355,1706191842137,-624.55940768,0.00039347,12]
[312740356,1706191842147,-150.0,0.00039366,2]
[312740357,1706191842157,-150.0,0.00039366,2]
[312740358,1706191842166,-489.8044188,0.000395,4]
[312740359,1706191842176,-150.524692,0.000397,2]
[312740360,1706191842185,-7999.99,0.000399,28]
[312740361,1706191842195,-350.09036543,0.000399,4]
[312740362,1706191842204,-152.22697284,0.000399,6]
[312740363,1706191842213,-150.0,0.00039942,2]
[312740364,1706191842223,-547.14423294,0.00039997,2]
[312740365,1706191842234,-155.0,0.0004,2]
[312740366,1706191842244,-1084.09238932,0.0004,4]
[312740367,1706191842253,-288.34670398,0.0004,4]
[312740368,1706191842263,-11035.48070072,0.0004,4]
[312740369,1706191842276,-2678.17508452,0.0004,4]
[312740370,1706191842286,-54328.02898102,0.0004,4]
[312740371,1706191842296,-1700.13032688,0.0004,4]
[312740372,1706191842305,-744.67492221,0.0004,30]
[312740373,1706191842316,-476.87,0.0004,30]
[312740374,1706191842325,-311.21032402,0.0004,30]
[312740375,1706191842335,-569.5924431,0.0004,4]
[312740376,1706191842344,-346075.04864638,0.0004,4]
[312740377,1706191842354,-2000.0,0.0004,2]
[312740378,1706191842364,-789.50273892,0.00040267,5]
[312740379,1706191842375,-200.0,0.00040269,5]
[312740380,1706191842384,-814.89868555,0.0004027,3]
[312740381,1706191842394,-200.0,0.000403,2]
[312740382,1706191842404,-150.0,0.00040375,2]
[312740383,1706191842413,-150.0,0.00040519,2]
[312740384,1706191842424,-489.72,0.00040733,2]
[312740385,1706191842433,-164.083196,0.0004099,2]
[312740386,1706191842443,-350.413885,0.0004099,2]
[312740387,1706191842454,-362.4,0.0004099,2]
[312740388,1706191842464,-1030.37789,0.0004099,2]
[312740389,1706191842475,-699.972871,0.0004099,2]
[312740390,1706191842484,-202.40275793,0.00041,2]
[312740391,1706191842495,-150.0,0.00041096,2]
[312740392,1706191842504,-158.8,0.000413,4]
[312740393,1706191842514,-158.8,0.000413,4]
[312740394,1706191842526,-153.13,0.000413,4]
[312740395,1706191842535,-153.13,0.000413,4]
[312740396,1706191842544,-152.06,0.000413,4]
[312740397,1706191842554,-152.06,0.000413,4]
[312740399,1706191842563,-152.06,0.000413,4]
[312740400,1706191842572,-152.06,0.000413,4]
[312740401,1706191842582,-152.06,0.000413,4]
[312740402,1706191842592,-152.06,0.000413,4]
[312740403,1706191842601,-152.06,0.000413,4]
[312740405,1706191842610,-152.06,0.000413,4]
[312740407,1706191842620,-152.06,0.000413,4]
[312740409,1706191842630,-152.06,0.000413,4]
[312740411,1706191842639,-152.06,0.000413,4]
[312740413,1706191842648,-152.06,0.000413,4]
[312740414,1706191842658,-152.06,0.000413,4]
[312740415,1706191842667,-178.55338146,0.00041352,4]
[312740416,1706191842676,-200.0,0.00041353,5]
[312740418,1706191842686,-150.0,0.00041384,2]
[312740420,1706191842695,-583.92219108,0.00041467,6]
[312740422,1706191842705,-1333.12917451,0.00041467,30]
[312740424,1706191842715,-1231.62441952,0.00041467,2]
[312740426,1706191842724,-320.40561355,0.00041467,30]
[312740428,1706191842733,-9108.00009746,0.00041467,4]
[312740429,1706191842743,-21532.17317682,0.00041467,2]
[312740430,1706191842753,-126821.07659734,0.00041467,2]
[312740431,1706191842763,-1749.66325237,0.00041467,120]
[312740432,1706191842775,-1035.36581287,0.00041467,20]
[312740433,1706191842786,-1108.559405,0.00041467,5]
[312740434,1706191842795,-3822.04210288,0.00041467,2]
[312740435,1706191842804,-8899.999999,0.00041467,30]
[312740436,1706191842814,-300.0,0.00041467,50]
[312740437,1706191842824,-150.94609243,0.00041495,2]
[312740438,1706191842834,-350.413885,0.00041502,30]
[312740439,1706191842845,-362.4,0.00041502,30]
[312740440,1706191842854,-1030.37789,0.00041502,30]
[312740441,1706191842864,-699.972871,0.00041502,30]
[312740442,1706191842875,-789.50273892,0.00041846,5]
[312740443,1706191842885,-399.64241906,0.00042,120]
[312740444,1706191842896,-173.73,0.00042,7]
[312740445,1706191842905,-1000.0,0.00042,3]
[312740446,1706191842920,-1734.1411425,0.00042,30]
[312740447,1706191842931,-594.39054103,0.00042,4]
[312740448,1706191842941,-2223.03677783,0.00042,4]
[312740449,1706191842951,-1257.28099772,0.00042,30]
[312740450,1706191842961,-201.3660272,0.00042,2]
[312740451,1706191842971,-150.77,0.00042,2]
[312740452,1706191842982,-150.77,0.00042,2]
[312740453,1706191842991,-150.77,0.00042,2]
[312740454,1706191843001,-150.77,0.00042,2]
[312740455,1706191843011,-150.77,0.00042,2]
[312740456,1706191843022,-150.77,0.00042,2]
[312740457,1706191843032,-150.77,0.00042,2]
[312740458,1706191843042,-150.77,0.00042,2]
[312740459,1706191843050,-150.77,0.00042,2]
[312740460,1706191843061,-150.77,0.00042,2]
[312740461,1706191843070,-150.77,0.00042,2]
[312740462,1706191843079,-150.77,0.00042,2]
[312740463,1706191843088,-150.77,0.00042,2]
[312740464,1706191843098,-150.77,0.00042,2]
[312740465,1706191843107,-150.77,0.00042,2]
[312740466,1706191843118,-150.77,0.00042,2]
[312740467,1706191843128,-150.77,0.00042,2]
[312740468,1706191843139,-150.77,0.00042,2]
[312740469,1706191843150,-150.77,0.00042,2]
[312740470,1706191843161,-150.77,0.00042,2]
[312740471,1706191843173,-150.77,0.00042,2]
[312740472,1706191843182,-150.77,0.00042,2]
[312740473,1706191843192,-150.77,0.00042,2]
[312740474,1706191843202,-150.77,0.00042,2]
[312740476,1706191843211,-150.77,0.00042,2]
[312740477,1706191843221,-150.77,0.00042,2]
[312740478,1706191843231,-150.77,0.00042,2]
[312740479,1706191843241,-150.77,0.00042,2]
[312740480,1706191843251,-150.77,0.00042,2]
[312740481,1706191843261,-150.77,0.00042,2]
[312740482,1706191843273,-150.77,0.00042,2]
[312740483,1706191843283,-150.77,0.00042,2]
[312740484,1706191843293,-150.77,0.00042,2]
[312740485,1706191843303,-150.77,0.00042,2]
[312740486,1706191843312,-150.77,0.00042,2]
[312740487,1706191843322,-150.77,0.00042,2]
[312740488,1706191843332,-150.77,0.00042,2]
[312740489,1706191843342,-150.77,0.00042,2]
[312740490,1706191843351,-150.77,0.00042,2]
[312740491,1706191843361,-150.77,0.00042,2]
[312740492,1706191843374,-150.77,0.00042,2]
[312740493,1706191843383,-150.77,0.00042,2]
[312740494,1706191843393,-150.77,0.00042,2]
[312740495,1706191843402,-150.77,0.00042,2]
[312740496,1706191843413,-150.77,0.00042,2]
[312740497,1706191843422,-150.77,0.00042,2]
[312740498,1706191843432,-150.77,0.00042,2]
[312740499,1706191843442,-150.77,0.00042,2]
[312740500,1706191843452,-150.77,0.00042,2]
[312740501,1706191843462,-150.77,0.00042,2]
[312740502,1706191843471,-150.77,0.00042,2]
[312740503,1706191843481,-150.77,0.00042,2]
[312740504,1706191843490,-150.77,0.00042,2]
[312740505,1706191843500,-150.77,0.00042,2]
[312740506,1706191843509,-150.77,0.00042,2]
[312740507,1706191843519,-150.77,0.00042,2]
[312740508,1706191843528,-150.77,0.00042,2]
[312740509,1706191843537,-150.77,0.00042,2]
[312740510,1706191843546,-150.77,0.00042,2]
[312740511,1706191843555,-150.77,0.00042,2]
[312740512,1706191843564,-150.77,0.00042,2]
[312740513,1706191843574,-150.77,0.00042,2]
[312740514,1706191843583,-150.77,0.00042,2]
[312740515,1706191843593,-150.77,0.00042,2]
[312740516,1706191843602,-150.77,0.00042,2]
[312740517,1706191843611,-150.77,0.00042,2]
[312740518,1706191843620,-150.77,0.00042,2]
[312740519,1706191843629,-150.77,0.00042,2]
[312740520,1706191843638,-150.77,0.00042,2]
[312740521,1706191843647,-150.77,0.00042,2]
[312740522,1706191843657,-150.77,0.00042,2]
[312740523,1706191843666,-150.77,0.00042,2]
[312740524,1706191843676,-150.77,0.00042,2]
[312740525,1706191843685,-150.77,0.00042,2]
[312740526,1706191843695,-150.77,0.00042,2]
[312740527,1706191843704,-150.77,0.00042,2]
[312740528,1706191843714,-150.77,0.00042,2]
[312740529,1706191843724,-150.77,0.00042,2]
[312740530,1706191843733,-150.77,0.00042,2]
[312740531,1706191843743,-150.77,0.00042,2]
[312740532,1706191843753,-150.77,0.00042,2]
[312740533,1706191843762,-150.77,0.00042,2]
[312740534,1706191843772,-150.77,0.00042,2]
[312740535,1706191843781,-150.77,0.00042,2]
[312740536,1706191843790,-150.77,0.00042,2]
[312740537,1706191843799,-150.77,0.00042,2]
[312740538,1706191843810,-150.77,0.00042,2]
[312740539,1706191843820,-150.77,0.00042,2]
[312740540,1706191843830,-164.11,0.00042009,15]
[312740541,1706191843840,-350.413885,0.00042015,30]
[312740542,1706191843849,-362.4,0.00042015,30]
[312740543,1706191843859,-1030.37789,0.00042015,30]
[312740544,1706191843868,-699.972871,0.00042015,30]
[312740545,1706191843878,-152.22697284,0.00042025,14]
[312740546,1706191843888,-666.0,0.000421,4]
[312740547,1706191843897,-19402.7879606,0.00042187,2]
[312740548,1706191843906,-489.72,0.00042205,2]
[312740549,1706191843915,-290.0,0.0004229,2]
[312740550,1706191843924,-263.0,0.0004229,2]
[312740551,1706191843933,-72060.3817523,0.000423,2]
[312740552,1706191843943,-150.0,0.00042394,2]
[312740553,1706191843952,-752.59232144,0.000425,10]
[312740554,1706191843962,-350.413885,0.00042527,30]
[312740555,1706191843971,-362.4,0.00042527,30]
[312740556,1706191843980,-1030.37789,0.00042527,30]
[312740557,1706191843990,-699.972871,0.00042527,30]
[312740558,1706191843999,-624.55940768,0.00042636,29]
[312740559,1706191844008,-500.0,0.00043,60]
[312740560,1706191844019,-151.613,0.00043029,30]
[312740561,1706191844028,-750.0,0.00043029,14]
[312740562,1706191844037,-164.083196,0.0004304,30]
[312740563,1706191844047,-350.413885,0.0004304,30]
[312740564,1706191844204,-362.4,0.0004304,30]
[312740565,1706191844234,-1030.37789,0.0004304,30]
[312740566,1706191844244,-699.972871,0.0004304,30]
[312740567,1706191844253,-357.81564083,0.00043314,7]
[312740568,1706191844263,-150.0,0.00043403,2]
[312740569,1706191844276,-789.50273892,0.00043425,5]
[312740570,1706191844286,-489.72,0.00043677,2]
[312740571,1706191844296,-556.68,0.0004399,10]
[312740572,1706191844306,-4891.25645109,0.00044,30]
[312740573,1706191844315,-162.83655199,0.00044,36]
[312740574,1706191844324,-152.22697284,0.0004415,22]
[312740575,1706191844334,-150.0,0.00044412,2]
[312740576,1706191844344,-630.0,0.0004473,7]
[312740577,1706191844355,-410.582,0.000448,30]
[312740578,1706191844368,-500.0,0.0004497,3]
[312740579,1706191844379,-153.90867087,0.00045,30]
[312740580,1706191844388,-2008.128677,0.00045,90]
[312740581,1706191844398,-158.8,0.00045,4]
[312740582,1706191844407,-158.8,0.00045,4]
[312740583,1706191844416,-153.13,0.00045,5]
[312740584,1706191844426,-153.13,0.00045,5]
[312740585,1706191844445,-222.22127664,0.00045,17]
[312740586,1706191844456,-155.48810514,0.00045,4]
[312740587,1706191844466,-152.06,0.00045,5]
[312740588,1706191844475,-152.06,0.00045,5]
[312740589,1706191844484,-152.06,0.00045,5]
[312740590,1706191844493,-152.06,0.00045,5]
[312740591,1706191844502,-152.06,0.00045,5]
[312740592,1706191844511,-152.06,0.00045,5]
[312740593,1706191844523,-152.06,0.00045,5]
[312740594,1706191844532,-152.06,0.00045,5]
[312740595,1706191844542,-152.06,0.00045,5]
[312740596,1706191844553,-152.06,0.00045,5]
[312740597,1706191844566,-152.06,0.00045,5]
[312740598,1706191844609,-152.06,0.00045,5]
[312740599,1706191844618,-152.06,0.00045,5]
[312740600,1706191844626,-2000.0,0.00045,4]
[312740601,1706191844635,-416.0,0.00045,2]
[312740602,1706191844645,-2000.0,0.00045,4]
[312740603,1706191844654,-789.50273892,0.00045004,5]
[312740604,1706191844663,-384.4548,0.0004514,30]
[312740605,1706191844673,-489.72,0.00045149,2]
[312740606,1706191844682,-150.0,0.00045422,2]
[312740607,1706191844692,-155.42229511,0.00045862,4]
[312740608,1706191844702,-155.0,0.00045862,4]
[312740609,1706191844711,-528.20128708,0.0004588,100]
[312740610,1706191844720,-624.55940768,0.00045926,46]
[312740611,1706191844730,-152.0,0.00046,3]
[312740612,1706191844739,-249.42138985,0.00046,37]
[312740613,1706191844749,-156.0,0.00046,90]
[312740614,1706191844761,-152.22697284,0.00046275,30]
[312740615,1706191844770,-150.0,0.00046431,2]
[312740616,1706191844780,-164.11,0.00046575,15]
[312740617,1706191844790,-789.50273892,0.00046583,5]
[312740618,1706191844799,-168.0,0.00047,90]
[312740619,1706191844809,-289.0,0.0004709,2]
[312740620,1706191844830,-262.0,0.0004709,2]
[312740621,1706191844840,-72060.3817523,0.000471,2]
[312740622,1706191844850,-817.53354899,0.0004724,4]
[312740623,1706191844860,-158.64926303,0.00047354,30]
[312740624,1706191844871,-150.0,0.0004744,2]
[312740625,1706191844880,-587.69923535,0.00047587,30]
[312740626,1706191844890,-151.01696798,0.00047598,30]
[312740627,1706191844900,-1175.50042208,0.00047614,30]
[312740628,1706191844910,-236.38626783,0.0004768,120]
[312740629,1706191844920,-167.0877099,0.00047709,30]
[312740630,1706191844932,-154.3362328,0.00047726,30]
[312740631,1706191844942,-1175.50042208,0.00047734,30]
[312740632,1706191844951,-159.9062418,0.00047767,7]
[312740633,1706191844961,-150.0,0.00047767,7]
[312740634,1706191844971,-12692.01621292,0.00047768,16]
[312740635,1706191844981,-5168.02401051,0.00047768,20]
[312740636,1706191844991,-45014.03504003,0.00047768,20]
[312740637,1706191845001,-3444.97713249,0.00047768,16]
[312740638,1706191845010,-396.03974936,0.00047781,30]
[312740639,1706191845020,-155.68396742,0.00047919,30]
[312740640,1706191845030,-396.03974936,0.00047934,30]
[312740641,1706191845039,-362.94569196,0.00047972,30]
[312740642,1706191845049,-396.03974936,0.0004798,30]
[312740643,1706191845059,-249.42138985,0.00048,38]
[312740644,1706191845069,-171.00776203,0.00048023,30]
[312740645,1706191845079,-587.69923535,0.00048047,30]
[312740646,1706191845089,-155.68396742,0.00048074,30]
[312740647,1706191845098,-158.9923502,0.0004808,30]
[312740648,1706191845108,-362.94569196,0.000481,30]
[312740649,1706191845118,-156.5932141,0.00048111,30]
[312740650,1706191845127,-153.488116,0.00048156,30]
[312740651,1706191845137,-167.42571051,0.00048161,30]
[312740652,1706191845147,-789.50273892,0.00048162,5]
[312740653,1706191845156,-151.01696798,0.00048194,30]
[312740654,1706191845165,-158.64926303,0.00048261,30]
[312740655,1706191845174,-154.3362328,0.00048271,30]
[312740656,1706191845183,-396.03974936,0.00048281,30]
[312740657,1706191845193,-155.00526785,0.00048307,30]
[312740658,1706191845202,-155.00526785,0.00048326,30]
[312740659,1706191845211,-155.00526785,0.00048364,30]
[312740660,1706191845221,-362.94569196,0.00048373,30]
[312740661,1706191845231,-173.73,0.000484,7]
[312740662,1706191845240,-152.22697284,0.000484,38]
[312740663,1706191845251,-300.0,0.0004841,2]
[312740664,1706191845262,-500.0,0.0004841,2]
[312740665,1706191845273,-500.0,0.0004841,2]
[312740666,1706191845283,-500.0,0.0004841,2]
[312740667,1706191845292,-500.0,0.0004841,2]
[312740668,1706191845302,-435.20087155,0.0004841,2]
[312740669,1706191845312,-587.69923535,0.00048428,30]
[312740670,1706191845322,-157.28287464,0.0004844,30]
[312740671,1706191845333,-150.0,0.0004845,2]
[312740672,1706191845342,-156.0,0.0004853,90]
[312740673,1706191845351,-396.03974936,0.00048591,30]
[312740674,1706191845360,-158.8,0.000486,4]
[312740675,1706191845373,-158.8,0.000486,4]
[312740676,1706191845384,-153.13,0.000486,6]
[312740677,1706191845394,-153.13,0.000486,6]
[312740678,1706191845403,-152.06,0.000486,6]
[312740679,1706191845414,-152.06,0.000486,6]
[312740680,1706191845423,-152.06,0.000486,6]
[312740681,1706191845433,-152.06,0.000486,6]
[312740682,1706191845443,-152.06,0.000486,6]
[312740683,1706191845454,-152.06,0.000486,6]
[312740684,1706191845464,-152.06,0.000486,6]
[312740685,1706191845473,-152.06,0.000486,6]
[312740687,1706191845483,-152.06,0.000486,6]
[312740688,1706191845492,-152.06,0.000486,6]
[312740689,1706191845502,-152.06,0.000486,6]
[312740690,1706191845512,-152.06,0.000486,6]
[312740691,1706191845525,-152.06,0.000486,6]
[312740692,1706191845534,-362.94569196,0.00048621,30]
[312740694,1706191845544,-362.94569196,0.00048624,30]
[312740696,1706191845553,-153.488116,0.00048728,30]
[312740697,1706191845562,-362.94569196,0.00048774,30]
[312740698,1706191845572,-362.94569196,0.00048796,30]
[312740699,1706191845582,-362.94569196,0.00048887,30]
[312740700,1706191845591,-396.03974936,0.00048901,30]
[312740701,1706191845601,-169.0,0.00048904,90]
[312740703,1706191845610,-153.488116,0.00048951,30]
[312740705,1706191845619,-153.488116,0.00048973,30]
[312740707,1706191845628,-13513.93783032,0.00049,4]
[312740710,1706191845641,-556.80116165,0.00049,30]
[312740712,1706191845651,-2852.78,0.00049041,2]
[312740714,1706191845660,-1645.31,0.00049041,2]
[312740717,1706191845669,-362.94569196,0.00049052,30]
[312740720,1706191845678,-1175.50042208,0.00049106,30]
[312740722,1706191845688,-1175.50042208,0.00049113,30]
[312740724,1706191845698,-154.67858104,0.00049182,30]
[312740726,1706191845707,-153.90506379,0.00049183,30]
[312740727,1706191845717,-153.488116,0.00049214,30]
[312740728,1706191845726,-624.55940768,0.00049215,63]
[312740729,1706191845735,-153.488116,0.00049266,30]
[312740730,1706191845744,-162.32786329,0.00049275,30]
[312740731,1706191845754,-2000.0,0.000493,30]
[312740732,1706191845763,-502.58384679,0.00049315,31]
[312740733,1706191845774,-475.03780105,0.00049315,31]
[312740735,1706191845784,-503.62122463,0.00049315,31]
[312740737,1706191845793,-505.4836722,0.00049315,31]
[312740738,1706191845802,-500.0,0.00049315,31]
[312740739,1706191845811,-510.81666721,0.00049315,31]
[312740740,1706191845821,-509.57774539,0.00049315,31]
[312740741,1706191845831,-500.0,0.00049315,31]
[312740742,1706191845840,-504.23567023,0.00049315,31]
[312740743,1706191845850,-500.0,0.00049315,31]
[312740744,1706191845859,-509.91547829,0.00049315,31]
[312740745,1706191845869,-511.36050609,0.00049315,31]
[312740746,1706191845879,-510.48845038,0.00049315,31]
[312740747,1706191845889,-507.74931233,0.00049315,31]
[312740748,1706191845899,-505.57080319,0.00049315,31]
[312740749,1706191845908,-250.0,0.00049315,31]
[312740750,1706191845918,-500.0,0.00049315,31]
[312740751,1706191845928,-500.0,0.00049315,31]
[312740752,1706191845937,-346.58479344,0.00049315,31]
[312740753,1706191845946,-504.00087411,0.00049315,31]
[312740754,1706191845956,-519.60436828,0.00049315,31]
[312740755,1706191845965,-500.0,0.00049315,31]
[312740756,1706191845975,-512.29062482,0.00049315,31]
[312740757,1706191845984,-507.68337243,0.00049315,31]
[312740758,1706191845994,-514.02097172,0.00049315,31]
[312740759,1706191846004,-515.02968237,0.00049315,31]
[312740760,1706191846013,-508.85833962,0.00049315,31]
[312740761,1706191846025,-504.18656238,0.00049315,31]
[312740762,1706191846035,-504.30435733,0.00049315,31]
[312740763,1706191846045,-510.67212917,0.00049315,31]
[312740764,1706191846055,-507.97803685,0.00049315,31]
[312740765,1706191846065,-500.0,0.00049315,31]
[312740766,1706191846074,-511.32746617,0.00049315,9]
[312740767,1706191846084,-500.0,0.00049315,31]
[312740768,1706191846093,-525.41780926,0.00049315,31]
[312740769,1706191846103,-500.0,0.00049315,31]
[312740770,1706191846112,-500.0,0.00049315,31]
[312740771,1706191846122,-500.0,0.00049315,31]
[312740772,1706191846131,-500.0,0.00049315,31]
[312740773,1706191846141,-500.0,0.00049315,31]
[312740774,1706191846150,-503.44898023,0.00049315,31]
[312740775,1706191846160,-500.0,0.00049315,31]
[312740776,1706191846170,-500.0,0.00049315,31]
[312740777,1706191846180,-549.51923039,0.00049315,31]
[312740778,1706191846189,-500.0,0.00049315,31]
[312740779,1706191846200,-500.0,0.00049315,31]
[312740780,1706191846209,-500.0,0.00049315,31]
[312740781,1706191846220,-500.0,0.00049315,31]
[312740782,1706191846230,-500.0,0.00049315,31]